[Event "Titled Tuesday Blitz November 29 Late 2022"]
[White "Ezat, Mohamed"]
[Black "Gonzalez, Francisco Silva"]
[WhiteFideId "10600906"]
[BlackFideId "1512285"]
[WhiteElo "2386"]
[BlackElo "2159"]
[Result "1/2-1/2"]
[Round "09"]
[TimeControl "180+1"]
[Date "2022.11.30"]
[WhiteClock "0:00:01"]
[BlackClock "0:00:04"]

1. d4 {[%clk 0:02:54]}  Nf6 {[%clk 0:02:59]} 2. c4 {[%clk 0:02:54]}  e6 {[%clk 0:02:58]} 3. Nc3 {[%clk 0:02:54]}  Bb4 {[%clk 0:02:58]} 4. e3 {[%clk 0:02:54]}  O-O {[%clk 0:02:57]} 5. a3 {[%clk 0:02:51]}  Be7 {[%clk 0:02:49]} 6. b4 {[%clk 0:02:50]}  d5 {[%clk 0:02:47]} 7. c5 {[%clk 0:02:50]}  b6 {[%clk 0:02:48]} 8. Bd3 {[%clk 0:02:48]}  c6 {[%clk 0:02:48]} 9. Nf3 {[%clk 0:02:46]}  a5 {[%clk 0:02:48]} 10. Bd2 {[%clk 0:02:46]}  Nbd7 {[%clk 0:02:48]} 11. O-O {[%clk 0:02:36]}  Ba6 {[%clk 0:02:46]} 12. b5 {[%clk 0:02:32]}  cxb5 {[%clk 0:02:44]} 13. c6 {[%clk 0:02:32]}  Nb8 {[%clk 0:02:43]} 14. Ne5 {[%clk 0:02:31]}  Bd6 {[%clk 0:02:39]} 15. Nxb5 {[%clk 0:02:27]}  Qe7 {[%clk 0:02:31]} 16. f4 {[%clk 0:02:21]}  Ne8 {[%clk 0:02:30]} 17. Rf3 {[%clk 0:02:17]}  f5 {[%clk 0:02:29]} 18. Rc1 {[%clk 0:02:01]}  Bxb5 {[%clk 0:02:27]} 19. Bxb5 {[%clk 0:02:00]}  Bxa3 {[%clk 0:02:22]} 20. Rc2 {[%clk 0:01:48]}  Bd6 {[%clk 0:02:21]} 21. Nd7 {[%clk 0:01:40]}  Nc7 {[%clk 0:02:14]} 22. Nxb6 {[%clk 0:01:14]}  Ra7 {[%clk 0:02:11]} 23. Bd3 {[%clk 0:01:10]}  a4 {[%clk 0:02:08]} 24. Ra2 {[%clk 0:01:08]}  a3 {[%clk 0:02:08]} 25. Qb3 {[%clk 0:01:06]}  Nxc6 {[%clk 0:02:07]} 26. Qc2 {[%clk 0:00:53]}  Nb4 {[%clk 0:02:06]} 27. Bxb4 {[%clk 0:00:52]}  Bxb4 {[%clk 0:02:06]} 28. Rf1 {[%clk 0:00:44]}  Qd6 {[%clk 0:02:05]} 29. Na4 {[%clk 0:00:43]}  Na6 {[%clk 0:01:59]} 30. g4 {[%clk 0:00:41]}  Rc7 {[%clk 0:01:58]} 31. Qg2 {[%clk 0:00:38]}  Qc6 {[%clk 0:01:54]} 32. Qe2 {[%clk 0:00:30]}  Qxa4 {[%clk 0:01:52]} 33. Bxa6 {[%clk 0:00:30]}  Qb3 {[%clk 0:01:52]} 34. gxf5 {[%clk 0:00:27]}  Rxf5 {[%clk 0:01:50]} 35. Bd3 {[%clk 0:00:26]}  Rf6 {[%clk 0:01:47]} 36. f5 {[%clk 0:00:26]}  Rc3 {[%clk 0:01:37]} 37. Rd2 {[%clk 0:00:21]}  Rc6 {[%clk 0:01:33]} 38. Rc2 {[%clk 0:00:19]}  Rxc2 {[%clk 0:01:31]} 39. Bxc2 {[%clk 0:00:19]}  Qc3 {[%clk 0:01:25]} 40. fxe6 {[%clk 0:00:18]}  a2 {[%clk 0:01:16]} 41. Rxf6 {[%clk 0:00:15]}  a1=Q+ {[%clk 0:01:12]} 42. Rf1 {[%clk 0:00:13]}  Qaa3 {[%clk 0:01:07]} 43. Bxh7+ {[%clk 0:00:12]}  Kh8 {[%clk 0:01:00]} 44. Bd3 {[%clk 0:00:01]}  Qxd3 {[%clk 0:00:58]} 45. Qh5+ {[%clk 0:00:01]}  Qh7 {[%clk 0:00:58]} 46. Qe8+ {[%clk 0:00:01]}  Qg8 {[%clk 0:00:44]} 47. Qh5+ {[%clk 0:00:01]}  Qh7 {[%clk 0:00:41]} 48. Qe8+ {[%clk 0:00:02]}  Qg8 {[%clk 0:00:06]} 49. Qh5+ {[%clk 0:00:01]}  Qh7 {[%clk 0:00:04]} 1/2-1/2


[Site "https://www.chess.com"]

[Event "Titled Tuesday Blitz November 29 Late 2022"]
[White "Forgacs, Attila Jr."]
[Black "Battlecruiser_Operational"]
[WhiteFideId "773654"]
[WhiteElo "2168"]
[BlackElo "2175"]
[Result "0-1"]
[Round "09"]
[TimeControl "180+1"]
[Date "2022.11.30"]
[WhiteClock "0:00:07"]
[BlackClock "0:00:08"]

1. e4 {[%clk 0:03:00]}  c6 {[%clk 0:03:00]} 2. d4 {[%clk 0:02:59]}  d5 {[%clk 0:03:00]} 3. Nd2 {[%clk 0:03:00]}  dxe4 {[%clk 0:02:59]} 4. Nxe4 {[%clk 0:03:01]}  Nd7 {[%clk 0:02:59]} 5. Ng5 {[%clk 0:02:58]}  Ndf6 {[%clk 0:02:57]} 6. Bd3 {[%clk 0:02:49]}  Nh6 {[%clk 0:02:43]} 7. c3 {[%clk 0:02:43]}  g6 {[%clk 0:02:34]} 8. N1f3 {[%clk 0:02:40]}  Bg7 {[%clk 0:02:34]} 9. O-O {[%clk 0:02:40]}  O-O {[%clk 0:02:34]} 10. Re1 {[%clk 0:02:33]}  Bf5 {[%clk 0:02:21]} 11. Ne5 {[%clk 0:02:30]}  Bxd3 {[%clk 0:02:18]} 12. Qxd3 {[%clk 0:02:29]}  Nf5 {[%clk 0:02:12]} 13. Bf4 {[%clk 0:02:20]}  Rc8 {[%clk 0:02:08]} 14. Qh3 {[%clk 0:02:03]}  e6 {[%clk 0:01:57]} 15. Ng4 {[%clk 0:01:53]}  Nh5 {[%clk 0:01:51]} 16. Ne3 {[%clk 0:01:28]}  h6 {[%clk 0:01:43]} 17. g4 {[%clk 0:00:49]}  Nxf4 {[%clk 0:01:35]} 18. Qf3 {[%clk 0:00:49]}  hxg5 {[%clk 0:01:26]} 19. gxf5 {[%clk 0:00:48]}  exf5 {[%clk 0:01:24]} 20. Nc4 {[%clk 0:00:46]}  f6 {[%clk 0:01:22]} 21. h4 {[%clk 0:00:36]}  Qd5 {[%clk 0:01:14]} 22. Qxd5+ {[%clk 0:00:36]}  cxd5 {[%clk 0:01:05]} 23. Nd6 {[%clk 0:00:35]}  Rcd8 {[%clk 0:00:54]} 24. Nxb7 {[%clk 0:00:34]}  Rb8 {[%clk 0:00:54]} 25. Nc5 {[%clk 0:00:31]}  Rxb2 {[%clk 0:00:53]} 26. Re7 {[%clk 0:00:30]}  Nh3+ {[%clk 0:00:42]} 27. Kg2 {[%clk 0:00:26]}  Nxf2 {[%clk 0:00:38]} 28. Rxa7 {[%clk 0:00:19]}  Ne4+ {[%clk 0:00:36]} 29. Kg1 {[%clk 0:00:19]}  gxh4 {[%clk 0:00:29]} 30. Ne6 {[%clk 0:00:16]}  Rf7 {[%clk 0:00:26]} 31. Ra8+ {[%clk 0:00:16]}  Kh7 {[%clk 0:00:27]} 32. Rf1 {[%clk 0:00:11]}  Bh6 {[%clk 0:00:25]} 33. Rf3 {[%clk 0:00:08]}  Ng5 {[%clk 0:00:15]} 34. Nxg5+ {[%clk 0:00:08]}  Bxg5 {[%clk 0:00:14]} 35. a4 {[%clk 0:00:07]}  Re7 {[%clk 0:00:12]} 36. a5 {[%clk 0:00:06]}  Re1+ {[%clk 0:00:12]} 37. Rf1 {[%clk 0:00:07]}  Rxf1+ {[%clk 0:00:12]} 38. Kxf1 {[%clk 0:00:08]}  h3 {[%clk 0:00:11]} 39. Ra7+ {[%clk 0:00:08]}  Kh6 {[%clk 0:00:11]} 40. Ra8 {[%clk 0:00:08]}  h2 {[%clk 0:00:10]} 41. Rh8+ {[%clk 0:00:08]}  Kg7 {[%clk 0:00:10]} 42. Rh3 {[%clk 0:00:08]}  Bf4 {[%clk 0:00:07]} 43. a6 {[%clk 0:00:08]}  Ra2 {[%clk 0:00:07]} 44. a7 {[%clk 0:00:05]}  Rxa7 {[%clk 0:00:07]} 45. Kg2 {[%clk 0:00:06]}  Ra2+ {[%clk 0:00:07]} 46. Kf3 {[%clk 0:00:06]}  Bd6 {[%clk 0:00:06]} 47. c4 {[%clk 0:00:05]}  g5 {[%clk 0:00:07]} 48. Rh5 {[%clk 0:00:03]}  g4+ {[%clk 0:00:06]} 49. Ke3 {[%clk 0:00:04]}  Ra1 {[%clk 0:00:05]} 50. c5 {[%clk 0:00:04]}  h1=Q {[%clk 0:00:05]} 51. Rxh1 {[%clk 0:00:03]}  Rxh1 {[%clk 0:00:06]} 52. cxd6 {[%clk 0:00:03]}  Kf7 {[%clk 0:00:06]} 53. Kf4 {[%clk 0:00:04]}  Ke6 {[%clk 0:00:07]} 54. d7 {[%clk 0:00:04]}  Kxd7 {[%clk 0:00:07]} 55. Kxf5 {[%clk 0:00:05]}  g3 {[%clk 0:00:07]} 56. Kxf6 {[%clk 0:00:04]}  g2 {[%clk 0:00:08]} 57. Ke5 {[%clk 0:00:04]}  g1=Q {[%clk 0:00:08]} 58. Kxd5 {[%clk 0:00:05]}  Qe3 {[%clk 0:00:08]} 59. Kc5 {[%clk 0:00:06]}  Rc1+ {[%clk 0:00:08]} 60. Kb5 {[%clk 0:00:06]}  Qb3+ {[%clk 0:00:08]} 61. Ka5 {[%clk 0:00:07]}  Ra1# {[%clk 0:00:08]} 0-1


[Site "https://www.chess.com"]

[Event "Titled Tuesday Blitz November 29 Late 2022"]
[White "Gatterer, Florian"]
[Black "Melian, Juan Sebastian"]
[WhiteFideId "811688"]
[BlackFideId "3706575"]
[WhiteElo "2218"]
[BlackElo "2044"]
[Result "0-1"]
[Round "09"]
[TimeControl "180+1"]
[Date "2022.11.30"]
[WhiteClock "0:00:21"]
[BlackClock "0:00:06"]

1. b3 {[%clk 0:02:55]}  e5 {[%clk 0:02:57]} 2. Bb2 {[%clk 0:02:54]}  Nc6 {[%clk 0:02:58]} 3. e3 {[%clk 0:02:49]}  d5 {[%clk 0:02:58]} 4. Bb5 {[%clk 0:02:42]}  Qd6 {[%clk 0:02:44]} 5. Nf3 {[%clk 0:02:39]}  f6 {[%clk 0:02:27]} 6. O-O {[%clk 0:02:33]}  Ne7 {[%clk 0:02:19]} 7. c4 {[%clk 0:02:29]}  a6 {[%clk 0:02:19]} 8. Bxc6+ {[%clk 0:02:28]}  Qxc6 {[%clk 0:02:11]} 9. d4 {[%clk 0:02:20]}  e4 {[%clk 0:02:07]} 10. Nfd2 {[%clk 0:02:20]}  f5 {[%clk 0:02:04]} 11. Nc3 {[%clk 0:02:19]}  Be6 {[%clk 0:02:04]} 12. Nxd5 {[%clk 0:02:13]}  Nxd5 {[%clk 0:02:05]} 13. cxd5 {[%clk 0:02:14]}  Bxd5 {[%clk 0:02:05]} 14. Rc1 {[%clk 0:02:08]}  Qh6 {[%clk 0:01:34]} 15. g3 {[%clk 0:01:57]}  Rc8 {[%clk 0:01:29]} 16. Nc4 {[%clk 0:01:53]}  Be7 {[%clk 0:01:29]} 17. Ne5 {[%clk 0:01:41]}  Bd6 {[%clk 0:01:27]} 18. Qd2 {[%clk 0:01:40]}  O-O {[%clk 0:01:26]} 19. Bc3 {[%clk 0:01:40]}  Rfd8 {[%clk 0:01:21]} 20. Qe1 {[%clk 0:01:32]}  Qe6 {[%clk 0:01:13]} 21. Qe2 {[%clk 0:01:17]}  c5 {[%clk 0:01:05]} 22. Nc4 {[%clk 0:01:13]}  Bf8 {[%clk 0:00:37]} 23. dxc5 {[%clk 0:01:08]}  Bxc4 {[%clk 0:00:23]} 24. bxc4 {[%clk 0:01:09]}  Bxc5 {[%clk 0:00:18]} 25. Qb2 {[%clk 0:01:04]}  Rd7 {[%clk 0:00:17]} 26. Rfd1 {[%clk 0:00:59]}  Rcd8 {[%clk 0:00:16]} 27. Bd4 {[%clk 0:00:54]}  Qc6 {[%clk 0:00:12]} 28. Qc3 {[%clk 0:00:47]}  Qb6 {[%clk 0:00:08]} 29. Rb1 {[%clk 0:00:37]}  Qa7 {[%clk 0:00:08]} 30. Bxc5 {[%clk 0:00:27]}  Rxd1+ {[%clk 0:00:09]} 31. Kg2 {[%clk 0:00:27]}  Qxc5 {[%clk 0:00:07]} 32. Rxb7 {[%clk 0:00:26]}  R1d7 {[%clk 0:00:08]} 33. Qb3 {[%clk 0:00:24]}  Rxb7 {[%clk 0:00:07]} 34. Qxb7 {[%clk 0:00:25]}  Qxc4 {[%clk 0:00:06]} 35. Qe7 {[%clk 0:00:24]}  Qd5 {[%clk 0:00:04]} 36. h4 {[%clk 0:00:25]}  h6 {[%clk 0:00:04]} 37. h5 {[%clk 0:00:25]}  Rf8 {[%clk 0:00:05]} 38. a4 {[%clk 0:00:24]}  Qf7 {[%clk 0:00:06]} 39. Qe5 {[%clk 0:00:23]}  Qxh5 {[%clk 0:00:06]} 40. Qe6+ {[%clk 0:00:23]}  Qf7 {[%clk 0:00:07]} 41. Qxa6 {[%clk 0:00:24]}  Qh5 {[%clk 0:00:06]} 42. Qc4+ {[%clk 0:00:23]}  Kh8 {[%clk 0:00:06]} 43. a5 {[%clk 0:00:23]}  Rd8 {[%clk 0:00:06]} 44. a6 {[%clk 0:00:22]}  Qf3+ {[%clk 0:00:06]} 45. Kh2 {[%clk 0:00:22]}  Qxf2+ {[%clk 0:00:07]} 46. Kh3 {[%clk 0:00:22]}  Rd1 {[%clk 0:00:04]} 47. Qc8+ {[%clk 0:00:20]}  Kh7 {[%clk 0:00:05]} 48. Qxf5+ {[%clk 0:00:20]}  Qxf5+ {[%clk 0:00:06]} 49. g4 {[%clk 0:00:20]}  Qf3+ {[%clk 0:00:06]} 50. Kh4 {[%clk 0:00:21]}  Rh1# {[%clk 0:00:06]} 0-1


[Site "https://www.chess.com"]

[Event "Titled Tuesday Blitz November 29 Late 2022"]
[White "Gerbelli Neto, Eduardo"]
[Black "Rodriguez Fontecha, Marcos"]
[WhiteFideId "2103281"]
[BlackFideId "2256576"]
[WhiteElo "2178"]
[BlackElo "2263"]
[Result "1/2-1/2"]
[Round "09"]
[TimeControl "180+1"]
[Date "2022.11.30"]
[WhiteClock "0:00:16"]
[BlackClock "0:00:51"]

1. e4 {[%clk 0:03:00]}  e6 {[%clk 0:02:56]} 2. d4 {[%clk 0:03:00]}  c5 {[%clk 0:02:56]} 3. c3 {[%clk 0:02:56]}  b6 {[%clk 0:02:56]} 4. Nf3 {[%clk 0:02:54]}  Bb7 {[%clk 0:02:56]} 5. Bd3 {[%clk 0:02:55]}  Nf6 {[%clk 0:02:55]} 6. Qe2 {[%clk 0:02:51]}  d5 {[%clk 0:02:54]} 7. Nbd2 {[%clk 0:02:45]}  Be7 {[%clk 0:02:51]} 8. e5 {[%clk 0:02:45]}  Nfd7 {[%clk 0:02:50]} 9. Nf1 {[%clk 0:02:34]}  Nc6 {[%clk 0:02:49]} 10. Ng3 {[%clk 0:02:32]}  cxd4 {[%clk 0:02:49]} 11. cxd4 {[%clk 0:02:31]}  Nb4 {[%clk 0:02:49]} 12. O-O {[%clk 0:02:24]}  Nxd3 {[%clk 0:02:45]} 13. Qxd3 {[%clk 0:02:25]}  Qc7 {[%clk 0:02:38]} 14. Bg5 {[%clk 0:02:16]}  Bxg5 {[%clk 0:02:23]} 15. Nxg5 {[%clk 0:02:17]}  h6 {[%clk 0:02:23]} 16. Rac1 {[%clk 0:02:03]}  Qd8 {[%clk 0:01:47]} 17. Nxe6 {[%clk 0:01:47]}  fxe6 {[%clk 0:01:47]} 18. Qg6+ {[%clk 0:01:47]}  Kf8 {[%clk 0:01:48]} 19. Qxe6 {[%clk 0:01:38]}  Qe7 {[%clk 0:01:48]} 20. Qf5+ {[%clk 0:01:35]}  Kg8 {[%clk 0:01:45]} 21. Rc7 {[%clk 0:01:35]}  Bc8 {[%clk 0:01:40]} 22. e6 {[%clk 0:01:28]}  Qd8 {[%clk 0:01:17]} 23. Qf7+ {[%clk 0:01:01]}  Kh7 {[%clk 0:01:17]} 24. Rxc8 {[%clk 0:00:20]}  Rxc8 {[%clk 0:01:12]} 25. exd7 {[%clk 0:00:20]}  Rc7 {[%clk 0:01:10]} 26. Qf5+ {[%clk 0:00:18]}  Kg8 {[%clk 0:01:09]} 27. Qxd5+ {[%clk 0:00:18]}  Kh7 {[%clk 0:01:09]} 28. Qf5+ {[%clk 0:00:17]}  Kg8 {[%clk 0:01:09]} 29. Qe6+ {[%clk 0:00:17]}  Kh7 {[%clk 0:01:07]} 30. Qf5+ {[%clk 0:00:17]}  Kg8 {[%clk 0:01:06]} 31. Qe6+ {[%clk 0:00:17]}  Kf8 {[%clk 0:01:03]} 32. Qf5+ {[%clk 0:00:16]}  Kg8 {[%clk 0:00:51]} 1/2-1/2


[Site "https://www.chess.com"]

[Event "Titled Tuesday Blitz November 29 Late 2022"]
[White "Iinuma, Paul Y"]
[Black "Toniutti, Ezio"]
[WhiteFideId "2031809"]
[BlackFideId "113034"]
[WhiteElo "2066"]
[BlackElo "2215"]
[Result "0-1"]
[Round "09"]
[TimeControl "180+1"]
[Date "2022.11.30"]
[WhiteClock "0:00:16"]
[BlackClock "0:00:13"]

1. Nf3 {[%clk 0:02:59]}  d5 {[%clk 0:02:45]} 2. d4 {[%clk 0:02:59]}  Nf6 {[%clk 0:02:43]} 3. g3 {[%clk 0:02:52]}  Bf5 {[%clk 0:02:42]} 4. Bg2 {[%clk 0:02:52]}  e6 {[%clk 0:02:42]} 5. O-O {[%clk 0:02:52]}  Be7 {[%clk 0:02:42]} 6. c4 {[%clk 0:02:52]}  c6 {[%clk 0:02:41]} 7. Nbd2 {[%clk 0:02:48]}  O-O {[%clk 0:02:40]} 8. b3 {[%clk 0:02:48]}  Nbd7 {[%clk 0:02:40]} 9. Bb2 {[%clk 0:02:49]}  h6 {[%clk 0:02:41]} 10. Re1 {[%clk 0:02:46]}  a5 {[%clk 0:02:40]} 11. Nh4 {[%clk 0:02:45]}  Bh7 {[%clk 0:02:38]} 12. e4 {[%clk 0:02:45]}  dxe4 {[%clk 0:02:36]} 13. Nxe4 {[%clk 0:02:44]}  a4 {[%clk 0:02:36]} 14. Nxf6+ {[%clk 0:02:41]}  Bxf6 {[%clk 0:02:33]} 15. Nf3 {[%clk 0:02:40]}  axb3 {[%clk 0:02:30]} 16. axb3 {[%clk 0:02:40]}  Qb6 {[%clk 0:02:28]} 17. Rxa8 {[%clk 0:02:33]}  Rxa8 {[%clk 0:02:25]} 18. Ne5 {[%clk 0:02:34]}  Nxe5 {[%clk 0:02:21]} 19. dxe5 {[%clk 0:02:35]}  Be7 {[%clk 0:02:21]} 20. Bd4 {[%clk 0:02:29]}  Qb4 {[%clk 0:02:14]} 21. Be3 {[%clk 0:02:16]}  Ra2 {[%clk 0:02:10]} 22. Re2 {[%clk 0:02:05]}  Rxe2 {[%clk 0:02:07]} 23. Qxe2 {[%clk 0:02:06]}  Qxb3 {[%clk 0:02:07]} 24. Bf1 {[%clk 0:02:07]}  Bb4 {[%clk 0:01:47]} 25. Qg4 {[%clk 0:01:59]}  Bf5 {[%clk 0:01:44]} 26. Qd4 {[%clk 0:01:57]}  Qb1 {[%clk 0:01:36]} 27. g4 {[%clk 0:01:47]}  Bg6 {[%clk 0:01:31]} 28. f3 {[%clk 0:01:32]}  Kh7 {[%clk 0:01:06]} 29. h4 {[%clk 0:01:30]}  h5 {[%clk 0:01:04]} 30. Kg2 {[%clk 0:01:09]}  Qa2+ {[%clk 0:00:57]} 31. Kh3 {[%clk 0:00:58]}  Be1 {[%clk 0:00:49]} 32. Bg2 {[%clk 0:00:45]}  Qc2 {[%clk 0:00:41]} 33. Qf4 {[%clk 0:00:43]}  Bf2 {[%clk 0:00:35]} 34. Bd2 {[%clk 0:00:30]}  Qd3 {[%clk 0:00:30]} 35. Bb4 {[%clk 0:00:29]}  c5 {[%clk 0:00:26]} 36. Ba5 {[%clk 0:00:27]}  Be3 {[%clk 0:00:26]} 37. Qg3 {[%clk 0:00:24]}  Qe2 {[%clk 0:00:23]} 38. Be1 {[%clk 0:00:20]}  Bd4 {[%clk 0:00:22]} 39. f4 {[%clk 0:00:15]}  hxg4+ {[%clk 0:00:22]} 40. Kh2 {[%clk 0:00:16]}  Bf5 {[%clk 0:00:21]} 41. Kh1 {[%clk 0:00:15]}  Be3 {[%clk 0:00:21]} 42. h5 {[%clk 0:00:15]}  Bxf4 {[%clk 0:00:18]} 43. Qxf4 {[%clk 0:00:15]}  Qxe1+ {[%clk 0:00:18]} 44. Kh2 {[%clk 0:00:16]}  Qh4+ {[%clk 0:00:18]} 45. Kg1 {[%clk 0:00:16]}  Qxh5 {[%clk 0:00:18]} 46. Bxb7 {[%clk 0:00:17]}  Qh3 {[%clk 0:00:16]} 47. Bg2 {[%clk 0:00:15]}  Qd3 {[%clk 0:00:15]} 48. Kh2 {[%clk 0:00:16]}  Qe2 {[%clk 0:00:14]} 49. Kg3 {[%clk 0:00:14]}  Kg6 {[%clk 0:00:14]} 50. Kh4 {[%clk 0:00:13]}  Qe1+ {[%clk 0:00:14]} 51. Qg3 {[%clk 0:00:12]}  Qxg3+ {[%clk 0:00:14]} 52. Kxg3 {[%clk 0:00:13]}  f6 {[%clk 0:00:14]} 53. Kf4 {[%clk 0:00:14]}  Kf7 {[%clk 0:00:13]} 54. Bc6 {[%clk 0:00:12]}  Bd3 {[%clk 0:00:12]} 55. exf6 {[%clk 0:00:12]}  gxf6 {[%clk 0:00:12]} 56. Kxg4 {[%clk 0:00:13]}  Bxc4 {[%clk 0:00:13]} 57. Kf4 {[%clk 0:00:14]}  Bd5 {[%clk 0:00:13]} 58. Ke3 {[%clk 0:00:15]}  Bxc6 {[%clk 0:00:13]} 59. Kd2 {[%clk 0:00:16]}  Bd5 {[%clk 0:00:14]} 60. Kc3 {[%clk 0:00:16]}  e5 {[%clk 0:00:13]} 0-1


[Site "https://www.chess.com"]

[Event "Titled Tuesday Blitz November 29 Late 2022"]
[White "Jaracz, Pawel"]
[Black "Czopor, Maciej"]
[WhiteFideId "1102222"]
[BlackFideId "21805431"]
[WhiteElo "2459"]
[BlackElo "2324"]
[Result "1-0"]
[Round "09"]
[TimeControl "180+1"]
[Date "2022.11.30"]
[WhiteClock "0:00:35"]
[BlackClock "0:00:01"]

1. d4 {[%clk 0:03:00]}  Nf6 {[%clk 0:02:57]} 2. c4 {[%clk 0:02:59]}  g6 {[%clk 0:02:57]} 3. Nc3 {[%clk 0:02:56]}  Bg7 {[%clk 0:02:58]} 4. e4 {[%clk 0:02:56]}  O-O {[%clk 0:02:58]} 5. Nf3 {[%clk 0:02:57]}  d6 {[%clk 0:02:59]} 6. Be2 {[%clk 0:02:57]}  e5 {[%clk 0:02:59]} 7. O-O {[%clk 0:02:57]}  Nc6 {[%clk 0:03:00]} 8. d5 {[%clk 0:02:57]}  Ne7 {[%clk 0:03:00]} 9. Ne1 {[%clk 0:02:57]}  Nd7 {[%clk 0:03:00]} 10. Nd3 {[%clk 0:02:56]}  f5 {[%clk 0:03:00]} 11. f3 {[%clk 0:02:55]}  f4 {[%clk 0:03:01]} 12. b4 {[%clk 0:02:53]}  g5 {[%clk 0:03:01]} 13. c5 {[%clk 0:02:53]}  Nf6 {[%clk 0:03:02]} 14. a4 {[%clk 0:02:50]}  h5 {[%clk 0:03:01]} 15. a5 {[%clk 0:02:45]}  Ng6 {[%clk 0:02:59]} 16. Nf2 {[%clk 0:02:36]}  Rf7 {[%clk 0:02:57]} 17. c6 {[%clk 0:02:29]}  Bh6 {[%clk 0:02:38]} 18. cxb7 {[%clk 0:02:28]}  Bxb7 {[%clk 0:02:39]} 19. b5 {[%clk 0:01:54]}  Rg7 {[%clk 0:02:24]} 20. h3 {[%clk 0:01:48]}  Nh4 {[%clk 0:02:20]} 21. Ra3 {[%clk 0:01:39]}  Kh8 {[%clk 0:02:03]} 22. Na2 {[%clk 0:01:27]}  Qg8 {[%clk 0:02:02]} 23. Rc3 {[%clk 0:01:21]}  Rf8 {[%clk 0:02:01]} 24. Ba3 {[%clk 0:01:15]}  g4 {[%clk 0:01:39]} 25. fxg4 {[%clk 0:01:07]}  hxg4 {[%clk 0:01:31]} 26. hxg4 {[%clk 0:01:07]}  Bc8 {[%clk 0:01:16]} 27. Rh3 {[%clk 0:01:07]}  Bg5 {[%clk 0:01:05]} 28. b6 {[%clk 0:01:06]}  axb6 {[%clk 0:00:57]} 29. axb6 {[%clk 0:01:06]}  Rh7 {[%clk 0:00:56]} 30. bxc7 {[%clk 0:01:05]}  f3 {[%clk 0:00:42]} 31. Bxf3 {[%clk 0:00:42]}  Be3 {[%clk 0:00:27]} 32. Bxd6 {[%clk 0:00:41]}  Nxg4 {[%clk 0:00:14]} 33. Bxg4 {[%clk 0:00:41]}  Qxg4 {[%clk 0:00:01]} 34. Bxe5+ {[%clk 0:00:38]}  Kg8 {[%clk 0:00:01]} 35. Qxg4+ {[%clk 0:00:36]}  Bxg4 {[%clk 0:00:02]} 36. Rxe3 {[%clk 0:00:37]}  Ng6 {[%clk 0:00:01]} 37. Bd6 {[%clk 0:00:35]} 1-0


[Site "https://www.chess.com"]

[Event "Titled Tuesday Blitz November 29 Late 2022"]
[White "Jimenez, Joaquin"]
[Black "Liu, Kelsey"]
[WhiteFideId "109860"]
[BlackFideId "30944481"]
[WhiteElo "2163"]
[BlackElo "2273"]
[Result "1-0"]
[Round "09"]
[TimeControl "180+1"]
[Date "2022.11.30"]
[WhiteClock "0:01:40"]
[BlackClock "0:00:01"]

1. c4 {[%clk 0:03:00]}  Nf6 {[%clk 0:02:55]} 2. Nc3 {[%clk 0:02:59]}  e6 {[%clk 0:02:55]} 3. g3 {[%clk 0:02:59]}  d5 {[%clk 0:02:54]} 4. Bg2 {[%clk 0:02:59]}  dxc4 {[%clk 0:02:55]} 5. Qa4+ {[%clk 0:02:58]}  Bd7 {[%clk 0:02:54]} 6. Qxc4 {[%clk 0:02:58]}  c6 {[%clk 0:02:54]} 7. d4 {[%clk 0:02:57]}  Bd6 {[%clk 0:02:48]} 8. Nf3 {[%clk 0:02:54]}  O-O {[%clk 0:02:48]} 9. e4 {[%clk 0:02:54]}  Be7 {[%clk 0:02:27]} 10. Bg5 {[%clk 0:02:48]}  Na6 {[%clk 0:02:26]} 11. Bxf6 {[%clk 0:02:46]}  Bxf6 {[%clk 0:02:26]} 12. e5 {[%clk 0:02:47]}  Be7 {[%clk 0:02:27]} 13. Ne4 {[%clk 0:02:47]}  Rc8 {[%clk 0:02:02]} 14. O-O {[%clk 0:02:44]}  c5 {[%clk 0:01:55]} 15. Rfd1 {[%clk 0:02:41]}  b5 {[%clk 0:01:52]} 16. Qe2 {[%clk 0:02:40]}  c4 {[%clk 0:01:50]} 17. d5 {[%clk 0:02:35]}  exd5 {[%clk 0:01:47]} 18. Rxd5 {[%clk 0:02:35]}  Qc7 {[%clk 0:01:42]} 19. Nd4 {[%clk 0:02:32]}  Rb8 {[%clk 0:01:34]} 20. Rd1 {[%clk 0:02:24]}  Nb4 {[%clk 0:01:28]} 21. Nc3 {[%clk 0:02:16]}  Nxd5 {[%clk 0:01:14]} 22. Nxd5 {[%clk 0:02:15]}  Qc5 {[%clk 0:01:14]} 23. e6 {[%clk 0:02:11]}  fxe6 {[%clk 0:00:53]} 24. Nxe6 {[%clk 0:02:10]}  Bxe6 {[%clk 0:00:52]} 25. Qxe6+ {[%clk 0:02:08]}  Rf7 {[%clk 0:00:42]} 26. Nxe7+ {[%clk 0:02:04]}  Qxe7 {[%clk 0:00:41]} 27. Bd5 {[%clk 0:02:04]}  Qxe6 {[%clk 0:00:20]} 28. Bxe6 {[%clk 0:02:03]}  Rf8 {[%clk 0:00:08]} 29. Rd7 {[%clk 0:02:02]}  a6 {[%clk 0:00:08]} 30. Ra7 {[%clk 0:01:59]}  g6 {[%clk 0:00:06]} 31. Rxa6 {[%clk 0:01:58]}  Kg7 {[%clk 0:00:06]} 32. Bxf7 {[%clk 0:01:58]}  Rxf7 {[%clk 0:00:07]} 33. Rb6 {[%clk 0:01:58]}  Rf5 {[%clk 0:00:07]} 34. f4 {[%clk 0:01:58]}  Rd5 {[%clk 0:00:06]} 35. h3 {[%clk 0:01:52]}  Kf7 {[%clk 0:00:06]} 36. Rb7+ {[%clk 0:01:42]}  Kf6 {[%clk 0:00:06]} 37. Rxh7 {[%clk 0:01:40]}  Rd2 {[%clk 0:00:04]} 38. b3 {[%clk 0:01:40]}  Rxa2 {[%clk 0:00:03]} 39. bxc4 {[%clk 0:01:40]}  bxc4 {[%clk 0:00:04]} 40. Rc7 {[%clk 0:01:40]}  Rc2 {[%clk 0:00:01]} 41. g4 {[%clk 0:01:40]} 1-0


[Site "https://www.chess.com"]

[Event "Titled Tuesday Blitz November 29 Late 2022"]
[White "Keymer, Vincent"]
[Black "Quesada Perez, Yuniesky"]
[WhiteFideId "12940690"]
[BlackFideId "3504409"]
[WhiteElo "2600"]
[BlackElo "2599"]
[Result "1-0"]
[Round "09"]
[TimeControl "180+1"]
[Date "2022.11.30"]
[WhiteClock "0:00:47"]
[BlackClock "0:00:01"]

1. Nf3 {[%clk 0:03:00]}  d5 {[%clk 0:02:59]} 2. e3 {[%clk 0:03:00]}  Nf6 {[%clk 0:02:59]} 3. c4 {[%clk 0:03:00]}  c6 {[%clk 0:02:59]} 4. Nc3 {[%clk 0:03:01]}  e6 {[%clk 0:02:59]} 5. b3 {[%clk 0:03:01]}  Nbd7 {[%clk 0:02:59]} 6. Qc2 {[%clk 0:03:01]}  Bd6 {[%clk 0:02:56]} 7. Bb2 {[%clk 0:03:01]}  O-O {[%clk 0:02:54]} 8. Be2 {[%clk 0:03:01]}  b6 {[%clk 0:02:45]} 9. Rg1 {[%clk 0:03:01]}  Bb7 {[%clk 0:02:45]} 10. g4 {[%clk 0:03:01]}  c5 {[%clk 0:02:37]} 11. g5 {[%clk 0:03:01]}  Ne4 {[%clk 0:02:33]} 12. cxd5 {[%clk 0:03:01]}  exd5 {[%clk 0:02:31]} 13. Nxe4 {[%clk 0:03:00]}  dxe4 {[%clk 0:02:24]} 14. Qc3 {[%clk 0:03:00]}  f6 {[%clk 0:02:22]} 15. Bc4+ {[%clk 0:02:02]}  Kh8 {[%clk 0:02:20]} 16. gxf6 {[%clk 0:02:03]}  Rxf6 {[%clk 0:02:10]} 17. Qxf6 {[%clk 0:02:02]}  Nxf6 {[%clk 0:01:45]} 18. Ng5 {[%clk 0:02:02]}  Qe7 {[%clk 0:01:02]} 19. Nf7+ {[%clk 0:02:02]}  Kg8 {[%clk 0:01:03]} 20. Nxd6+ {[%clk 0:02:02]}  Kf8 {[%clk 0:00:47]} 21. Nf5 {[%clk 0:01:54]}  Qd7 {[%clk 0:00:36]} 22. Nxg7 {[%clk 0:01:37]}  Nd5 {[%clk 0:00:36]} 23. Nh5 {[%clk 0:01:24]}  b5 {[%clk 0:00:32]} 24. Rg8+ {[%clk 0:01:02]}  Kxg8 {[%clk 0:00:20]} 25. Nf6+ {[%clk 0:01:02]}  Kf7 {[%clk 0:00:21]} 26. Nxd7 {[%clk 0:01:03]}  bxc4 {[%clk 0:00:21]} 27. Nxc5 {[%clk 0:01:02]}  Bc6 {[%clk 0:00:17]} 28. bxc4 {[%clk 0:00:58]}  Nb4 {[%clk 0:00:15]} 29. Ke2 {[%clk 0:00:56]}  Rd8 {[%clk 0:00:09]} 30. Rg1 {[%clk 0:00:48]}  Nd3 {[%clk 0:00:04]} 31. Rg7+ {[%clk 0:00:47]}  Kf8 {[%clk 0:00:01]} 32. Ne6+ {[%clk 0:00:47]} 1-0


[Site "https://www.chess.com"]